fUSD/lending_fUSD_20251024
["ID","MTS","AMOUNT","RATE_DAILY","PERIOD"]
[392330754,1761348646653,-151.0,0.00038256,30]
[392330755,1761348646663,-316.647679,0.00038256,30]
[392330756,1761348646673,-151.0,0.00038256,30]
[392330757,1761348646684,-316.647678,0.00038256,30]
[392330758,1761348646694,-500.0,0.00038273,5]
[392330759,1761348646705,-500.0,0.00038273,5]
[392330760,1761348646716,-501.53794578,0.00038273,5]
[392330761,1761348646727,-500.0,0.00038273,5]
[392330762,1761348646738,-500.0,0.00038273,5]
[392330763,1761348646749,-163.8511214,0.00038273,5]
[392330764,1761348646759,-160.26537923,0.00038273,5]
[392330765,1761348646772,-160.2103039,0.00038273,5]
[392330766,1761348646783,-160.20702108,0.00038273,2]
[392330767,1761348646793,-200.0,0.00038273,5]
[392330768,1761348646803,-166.89002745,0.00038273,5]
[392330769,1761348646814,-406.90647944,0.00038273,5]
[392330770,1761348904095,-250.0022515,0.00018208,2]
[392330771,1761348905630,-232.86496782,0.00018208,2]
[392330772,1761348907852,-144.10278068,0.00018208,2]
[392330773,1761348907876,-177.17644981,0.00019166,2]
[392330774,1761348910486,-268.39718434,0.00019166,2]
[392330775,1761349099106,-181.39636585,0.00019166,2]
[392330776,1761349099129,-76.13230857,0.00019646,2]
[392330778,1761349685569,-190.15,0.00020125,2]
[392330779,1761349685736,-209.60817955,0.00020125,2]
[392330780,1761349685788,-227.21182045,0.00020125,2]
[392330782,1761349710895,63.18,0.00013699,2]
[392330783,1761349710921,94.37,0.00013699,2]
[392330796,1761349832200,-626.97,0.00021083,2]
[392330798,1761349832210,-568.35165081,0.00022041,2]
[392330799,1761349832221,-58.61834919,0.00022041,2]
[392330800,1761349832230,-257.52867442,0.00022137,2]
[392330801,1761349832240,-365.91339654,0.00022664,2]
[392330802,1761349832249,-404.39230637,0.00023,2]
[392330803,1761349832260,-222.57769363,0.00023,2]
[392330804,1761349832269,-157.55,0.00023182,2]
[392330805,1761349832279,-626.97,0.00023958,2]
[392330806,1761349832288,-300.0,0.00024903,2]
[392330807,1761349832298,-151.0,0.00024904,2]
[392330808,1761349832307,-151.0,0.00024904,2]
[392330809,1761349832316,-151.0,0.00024904,2]
[392330810,1761349832325,-151.0,0.00024904,2]
[392330811,1761349832334,-151.0,0.00024904,2]
[392330812,1761349832343,-151.0,0.00024904,2]
[392330813,1761349832352,-264.4478428,0.00024904,2]
[392330814,1761349832361,-151.0,0.00024904,2]
[392330815,1761349832372,-151.0,0.00024904,2]
[392330816,1761349832387,-151.0,0.00024904,2]
[392330817,1761349832396,-151.0,0.00024904,2]
[392330818,1761349832405,-151.0,0.00024904,2]
[392330819,1761349832415,-151.0,0.00024904,2]
[392330820,1761349832424,-151.0,0.00024904,2]
[392330821,1761349832432,-151.0,0.00024904,2]
[392330822,1761349832441,-151.0,0.00024904,2]
[392330823,1761349832450,-151.0,0.00024904,2]
[392330824,1761349832459,-626.97,0.00024916,2]
[392330825,1761349832468,-922.78444028,0.00024919,2]
[392330826,1761349832478,-626.97,0.00025875,2]
[392330827,1761349832487,-626.97,0.00026833,2]
[392330828,1761349832497,-420.0,0.00026981,2]
[392330829,1761349832506,-626.97,0.00027791,2]
[392330830,1761349832515,-626.97,0.0002875,2]
[392330831,1761349832524,-277.0,0.00029232,2]
[392330832,1761349832534,-626.97,0.00029708,2]
[392330833,1761349832543,-626.97,0.00030666,2]
[392330834,1761349832553,-626.97,0.00031625,2]
[392330835,1761349832563,-233.16485764,0.00031809,2]
[392330836,1761349832572,-626.97,0.00032583,2]
[392330837,1761349832582,-157.55,0.00032666,2]
[392330838,1761349832591,-626.97,0.00033541,2]
[392330839,1761349832601,-345.77461635,0.00033806,2]
[392330840,1761349832611,-200.0,0.00034264,2]
[392330841,1761349832621,-157.56,0.00034331,120]
[392330843,1761349832630,-1000.0,0.00034407,2]
[392330845,1761349832639,-626.97,0.000345,2]
[392330847,1761349832649,-1195.85,0.00034586,2]
[392330849,1761349832658,-151.662,0.00034586,39]
[392330851,1761349832668,-220.2,0.00034602,2]
[392330853,1761349832677,-150.0,0.0003464,2]
[392330855,1761349832686,-150.0,0.0003464,120]
[392330857,1761349832696,-655.15,0.0003466,2]
[392330859,1761349832705,-386.89,0.00034759,2]
[392330861,1761349832714,-250.0,0.00034782,2]
[392330863,1761349832723,-1000.09008277,0.00035,120]
[392330867,1761349832733,-150.0,0.00035088,7]
[392330869,1761349832742,-150.0,0.00035088,7]
[392330871,1761349832751,-150.0,0.00035088,7]
[392330874,1761349832760,-4956.0,0.00035197,2]
[392330876,1761349832769,-626.97,0.00035458,2]
[392330878,1761349832778,-166.66,0.00035568,2]
[392330880,1761349832786,-4000.0,0.00035616,5]
[392330882,1761349832795,-152.0,0.00035945,3]
[392330883,1761349832805,-655.15,0.00035959,2]
[392330885,1761349832814,-4783.9910497,0.00036073,2]
[392330887,1761349832823,-830.9102102,0.00036073,2]
[392330889,1761349832833,-3336.8482696,0.00036073,2]
[392330891,1761349832842,-1363.4948538,0.00036073,2]
[392330894,1761349832852,-500.0,0.00036213,30]
[392330896,1761349832862,-209.0,0.00036246,2]
[392330898,1761349832872,-168.0,0.00036395,120]
[392330900,1761349832881,-626.97,0.00036416,2]
[392330901,1761349832891,-168.0,0.00036475,2]
[392330904,1761349832901,-500.0,0.00036499,30]
[392330906,1761349832910,-220.2,0.00036525,2]
[392330908,1761349832919,-6568.32958728,0.00036548,2]
[392330910,1761349832936,-1166.0,0.00036548,2]
[392330913,1761349832947,-4836.77114204,0.00036548,2]
[392330915,1761349832958,-483.67048522,0.00036548,2]
[392330917,1761349832969,-586.00786397,0.00036548,2]
[392330920,1761349832988,-3500.00002,0.00036548,2]
[392330922,1761349833001,-5500.0,0.00036548,2]
[392330925,1761349833012,-11627.9740067,0.00036548,2]
[392330927,1761349833023,-8792.39960905,0.00036548,2]
[392331058,1761349840754,-535.28791403,0.0002698,2]
[392331059,1761349840764,-7315.97121944,0.00036548,2]
[392331060,1761349840774,-3091.8113365,0.00036548,2]
[392331061,1761349840784,-168.0,0.00036599,2]
[392331062,1761349840794,-600.05004039,0.000366,5]
[392331063,1761349840804,-500.0,0.000366,5]
[392331064,1761349840814,-500.0,0.000366,5]
[392331065,1761349840824,-500.0,0.000366,2]
[392331066,1761349840834,-476.11845244,0.000366,5]
[392331067,1761349840844,-196.50331543,0.000366,2]
[392331068,1761349840853,-500.0,0.000366,5]
[392331069,1761349840862,-500.0,0.00036729,2]
[392331070,1761349840871,-500.0,0.00036729,2]
[392331071,1761349840881,-500.0,0.00036729,30]
[392331072,1761349840890,-500.0,0.00036729,30]
[392331073,1761349840899,-500.0,0.00036729,30]
[392331074,1761349840908,-500.0,0.00036729,30]
[392331075,1761349840917,-500.0,0.00036729,30]
[392331076,1761349840926,-166.66,0.00036742,2]
[392331077,1761349840935,-199.0,0.00036777,7]
[392331078,1761349840944,-386.94,0.00036816,2]
[392331079,1761349840953,-168.0,0.00036821,7]
[392331080,1761349840963,-500.0,0.00037,120]
[392331081,1761349840972,-168.0,0.00037001,7]
[392331082,1761349840981,-150.0,0.00037037,7]
[392331083,1761349840991,-324.12,0.00037051,8]
[392331084,1761349841000,-2766.02,0.00037056,7]
[392331085,1761349841009,-500.0,0.0003707,30]
[392331086,1761349841018,-168.0,0.00037083,2]
[392331087,1761349841027,-300.0,0.00037121,7]
[392331088,1761349841037,-500.0,0.00037129,30]
[392331089,1761349841046,-426.05040114,0.00037148,5]
[392331090,1761349841056,-1000.0,0.00037148,5]
[392331091,1761349841065,-1000.0,0.00037148,2]
[392331092,1761349841074,-168.0,0.00037176,2]
[392331093,1761349841083,-500.0,0.00037234,30]
[392331094,1761349841092,-655.15,0.00037259,2]
[392331095,1761349841101,-1826.0,0.000373,2]
[392331096,1761349841110,-6013.98,0.00037333,2]
[392331097,1761349841119,-291.95,0.00037359,2]
[392331098,1761349841129,-475.59,0.0003737,2]
[392331099,1761349841138,-721.91,0.00037457,2]
[392331100,1761349841152,-150.0,0.00037594,2]
[392331101,1761349841162,-2401.64,0.00037594,2]
[392331102,1761349841172,-414.35,0.00037594,2]
[392331103,1761349841182,-150.0,0.00037594,2]
[392331104,1761349841194,-176.3,0.00037594,2]
[392331105,1761349841204,-150.0,0.00037594,2]
[392331106,1761349841214,-414.35,0.00037594,2]
[392331107,1761349841224,-678.86657509,0.00037674,30]
[392331108,1761349841233,-1392.77690881,0.00037696,5]
[392331109,1761349841243,-1500.0,0.00037696,2]
[392331110,1761349841252,-202.11544683,0.00037789,2]
[392331111,1761349841262,-300.0,0.000378,13]
[392331112,1761349841271,-3378.8805,0.0003787,2]
[392331113,1761349841280,-700.0,0.000379,13]
[392331114,1761349841290,-166.66,0.00037916,2]
[392331115,1761349841300,-500.0,0.00037976,2]
[392331116,1761349841309,-500.0,0.00037976,30]
[392331117,1761349841319,-500.0,0.00037976,30]
[392331118,1761349841329,-200.0,0.00038008,10]
[392331119,1761349841338,-168.0,0.00038009,120]
[392331120,1761349841348,-5540.36096476,0.0003801,2]
[392331121,1761349841359,-2500.0,0.00038014,2]
[392331122,1761349841368,-1000.0,0.00038014,2]
[392331123,1761349841378,-2691.85487528,0.00038014,2]
[392331124,1761349841387,-1000.0,0.000381,7]
[392331125,1761349841397,-15917.2503357,0.00038104,3]
[392331126,1761349841406,-500.0,0.00038113,30]
[392331127,1761349841415,-159.69123111,0.00038113,15]
[392331128,1761349841424,-500.0,0.00038113,7]
[392331129,1761349841434,-500.0,0.00038113,2]
[392331130,1761349841443,-500.0,0.00038113,30]
[392331131,1761349841452,-1000.0,0.00038114,2]
[392331132,1761349841461,-940.1478,0.00038114,2]
[392331133,1761349841470,-192905.9012,0.00038114,2]
[392331134,1761349841479,-1000.0,0.00038114,120]
[392331135,1761349841489,-5000.0,0.00038116,2]
[392331136,1761349841498,-934.83473818,0.0003812,10]
[392331137,1761349841508,-1425.0,0.00038146,2]
[392331138,1761349841518,-924.39405687,0.00038147,2]
[392331139,1761349841535,-500.0,0.00038155,2]
[392331140,1761349841544,-500.0,0.00038155,30]
[392331141,1761349841554,-500.0,0.00038155,30]
[392331142,1761349841564,-213.44686772,0.00038166,2]
[392331143,1761349841574,-1000.0,0.000382,7]
[392331144,1761349841585,-15917.2503357,0.00038203,3]
[392331145,1761349841596,-500.0,0.00038203,2]
[392331146,1761349841605,-15917.2503357,0.0003821,3]
[392331147,1761349841614,-500.0,0.00038213,2]
[392331148,1761349841624,-500.0,0.00038213,2]
[392331149,1761349841634,-168.0,0.00038214,2]
[392331150,1761349841643,-159.393,0.0003822,2]
[392331151,1761349841652,-2053.0,0.0003822,2]
[392331152,1761349841663,-819.0,0.0003822,2]
[392331153,1761349841673,-572.0,0.0003822,2]
[392331154,1761349841683,-3413.0,0.0003822,2]
[392331155,1761349841693,-1312.0,0.0003822,2]
[392331156,1761349841704,-606.0,0.0003822,2]
[392331157,1761349841713,-1591.0,0.0003822,2]
[392331158,1761349841723,-1269.0,0.0003822,2]
[392331159,1761349841733,-818.0,0.0003822,2]
[392331160,1761349841744,-6539.0,0.0003822,2]
[392331161,1761349841753,-6456.0,0.0003822,2]
[392331162,1761349841763,-3487.0,0.0003822,2]
[392331163,1761349841774,-558.0,0.0003822,2]
[392331164,1761349841786,-500.0,0.00038225,2]
[392331165,1761349841796,-153.89512624,0.00038235,2]
[392331166,1761349841806,-500.0,0.00038235,2]
[392331167,1761349841816,-500.0,0.00038235,2]
[392331168,1761349841826,-15917.2503357,0.00038236,3]
[392331169,1761349841836,-500.0,0.00038236,7]
[392331170,1761349841846,-63669.0013429,0.00038237,3]
[392331171,1761349841855,-517.37453729,0.00038244,2]
[392331172,1761349841865,-324.92947398,0.00038246,2]
[392331173,1761349841876,-647.08,0.00038246,7]
[392331174,1761349841886,-500.0,0.00038246,2]
[392331175,1761349841900,-7842.8634106,0.00038247,2]
[392331176,1761349841909,-110767.5500745,0.00038247,2]
[392331177,1761349841920,-500.0,0.00038255,2]
[392331178,1761349841929,-2107.0,0.00038256,5]
[392331179,1761349841939,-117231.5366,0.00038256,30]
[392331180,1761349841949,-186.87130963,0.00038256,2]
[392331181,1761349841961,-160.56398268,0.00038256,11]
[392331182,1761349841971,-15917.2503357,0.00038262,3]
[392331183,1761349841983,-151.0,0.00038272,30]
[392331184,1761349841993,-151.0,0.00038272,30]
[392331185,1761349842002,-151.0,0.00038272,30]
[392331186,1761349842012,-151.0,0.00038272,30]
[392331187,1761349842022,-160.059782,0.00038272,30]
[392331188,1761349842031,-151.0,0.00038272,30]
[392331189,1761349842043,-254.043692,0.00038272,30]
[392331190,1761349842052,-151.0,0.00038272,30]
[392331191,1761349842061,-151.0,0.00038272,30]
[392331192,1761349842071,-153.04558204,0.00038272,30]
[392331193,1761349842081,-334.5472959,0.00038272,5]
[392331194,1761349842091,-500.0,0.00038272,5]
[392331195,1761349842101,-500.0,0.00038272,5]
[392331196,1761349842111,-500.0,0.00038272,5]
[392331197,1761349842120,-500.0,0.00038272,5]
[392331198,1761349842130,-500.0,0.00038272,5]
[392331199,1761349842140,-500.0,0.00038272,5]
[392331200,1761349842149,-489.64647954,0.00038272,5]
[392331201,1761349842159,-500.0,0.00038272,5]
[392331202,1761349842168,-500.0,0.00038272,5]
[392331203,1761349842179,-500.0,0.00038272,5]
[392331204,1761349842192,-500.0,0.00038272,5]
[392331205,1761349842202,-500.0,0.00038272,5]
[392331206,1761349842211,-645.2214,0.00038272,5]
[392331207,1761349842221,-393.07351964,0.00038272,5]
[392331208,1761349842231,-669.0945918,0.00038272,5]
[392331209,1761349842240,-693.8510917,0.00038272,5]
[392331210,1761349842249,-719.52358209,0.00038272,5]
[392331211,1761349842259,-746.14595463,0.00038272,5]
[392331212,1761349842268,-773.75335495,0.00038272,5]
[392331213,1761349842278,-802.38222908,0.00038272,5]
[392331214,1761349842287,-832.07037156,0.00038272,5]
[392331215,1761349842296,-862.8569753,0.00038272,5]
[392331216,1761349842305,-894.78268339,0.00038272,5]
[392331217,1761349842315,-927.88964268,0.00038272,5]
[392331218,1761349842324,-962.22155946,0.00038272,5]
[392331219,1761349842333,-997.82375716,0.00038272,5]
[392331220,1761349842343,-1034.74323617,0.00038272,5]
[392331221,1761349842352,-500.0,0.00038272,5]
[392331222,1761349842362,-1073.02873591,0.00038272,5]
[392331223,1761349842371,-500.0,0.00038272,5]
[392331224,1761349842381,-1112.73079914,0.00038272,5]
[392331225,1761349842390,-500.0,0.00038272,5]
[392331226,1761349842399,-500.0,0.00038272,5]
[392331227,1761349842408,-500.0,0.00038272,5]
[392331228,1761349842417,-342.96610045,0.00038272,5]
[392331229,1761349842427,-500.81021082,0.00038273,5]
[392331230,1761349842436,-582.12131672,0.00038273,5]
[392331231,1761349842446,-500.76547992,0.00038273,5]
[392331232,1761349842455,-500.0,0.00038273,5]
[392331233,1761349842465,-500.0,0.00038273,5]
[392331234,1761349842474,-500.0,0.00038273,5]
[392331235,1761349842483,-483.35601814,0.00038273,5]
[392331236,1761349842492,-200.0,0.00038273,2]
[392331237,1761349842502,-200.0,0.00038273,2]
[392331238,1761349842511,-200.0,0.00038273,2]
[392331239,1761349842521,-250.0,0.00038279,2]
[392331240,1761349842530,-150.0,0.00038279,2]
[392331241,1761349842540,-150.0,0.00038279,2]
[392331242,1761349842549,-11140.3008127,0.00038298,3]
[392331243,1761349842559,-221.0,0.00038301,3]
[392331244,1761349842568,-15917.2503357,0.00038305,3]
[392331245,1761349842577,-168.0,0.00038307,7]
[392331246,1761349842587,-5540.36096476,0.00038311,2]
[392331247,1761349842597,-716.90325673,0.00038313,6]
[392331248,1761349842606,-1149.80959397,0.00038313,7]
[392331249,1761349842615,-2691.8548752,0.00038315,2]
[392331250,1761349842625,-280.45564929,0.00038317,6]
[392331251,1761349842634,-11140.3008127,0.00038318,3]
[392331252,1761349842643,-151.0,0.00038325,30]
[392331253,1761349842652,-151.0,0.00038325,30]
[392331254,1761349842662,-716.90325673,0.00038325,6]
[392331255,1761349842672,-47751.7510072,0.00038326,3]
[392331256,1761349842682,-22473.52313055,0.00038326,3]
[392331258,1761349843433,-10947.37930755,0.00038326,3]
[392331259,1761349843442,-150.0,0.00038328,2]
[392331260,1761349843451,-150.0,0.00038328,2]
[392331261,1761349843460,-150.0,0.00038328,2]
[392331262,1761349843469,-150.0,0.00038328,2]
[392331263,1761349843603,-150.0,0.00038328,2]
[392331264,1761349843612,-150.77597293,0.00038328,2]
[392331265,1761349843622,-202.01765236,0.00038328,2]
[392331266,1761349843631,-150.0,0.00038328,2]
[392331267,1761349843641,-1057.96,0.00038328,14]
[392331268,1761349843650,-500.0,0.00038328,2]
[392331269,1761349843659,-500.0,0.00038328,2]
[392331270,1761349843669,-150.0,0.00038328,2]
[392331271,1761349843678,-200.0,0.00038328,2]
[392331272,1761349843687,-500.0,0.00038328,2]
[392331273,1761349843696,-500.0,0.00038328,2]
[392331274,1761349843705,-150.0,0.00038328,2]
[392331275,1761349843714,-1125.0,0.00038328,2]
[392331276,1761349843724,-207.27140812,0.00038328,2]
[392331277,1761349843734,-150.0,0.00038328,2]
[392331278,1761349843743,-500.0,0.00038328,2]
[392331279,1761349843752,-150.0,0.00038328,2]
[392331280,1761349843761,-150.0,0.00038328,2]
[392331281,1761349843770,-150.0,0.00038328,2]
[392331282,1761349843779,-150.0,0.00038328,2]
[392331283,1761349843789,-150.0,0.00038328,2]
[392331284,1761349843798,-150.0,0.00038328,2]
[392331285,1761349843807,-500.0,0.00038328,2]
[392331286,1761349843816,-500.0,0.00038328,2]
[392331287,1761349843826,-151.0,0.00038329,30]
[392331288,1761349843836,-11140.3008127,0.00038335,3]
[392331289,1761349843847,-500.0,0.00038335,2]
[392331290,1761349843859,-2353.1485215,0.00038335,6]
[392331291,1761349843870,-467.71208976,0.00038336,2]
[392331292,1761349843879,-150.41,0.00038336,2]
[392331293,1761349843888,-151.0,0.00038336,30]
[392331294,1761349843897,-280.45564929,0.00038337,6]
[392331295,1761349843907,-570.56999594,0.00038337,6]
[392331296,1761349843916,-9746.30385874,0.00038345,120]
[392331297,1761349843925,-999.0,0.00038345,120]
[392331298,1761349843934,-159172.503357,0.00038346,3]
[392331299,1761349843944,-178244.813003,0.00038346,3]
[392331300,1761349843954,-151.0,0.00038346,30]
[392331301,1761349843964,-151.0,0.00038346,30]
[392331302,1761349843974,-151.0,0.00038346,30]
[392331303,1761349843985,-151.0,0.00038346,30]
[392331304,1761349843994,-151.0,0.00038346,30]
[392331305,1761349844003,-151.0,0.00038346,30]
[392331306,1761349844012,-151.0,0.00038346,30]
[392331307,1761349844023,-151.0,0.00038346,30]
[392331308,1761349844033,-151.0,0.00038346,30]
[392331309,1761349844042,-151.0,0.00038346,30]
[392331310,1761349844052,-274.074325,0.00038346,30]
[392331311,1761349844062,-166.582358,0.00038346,30]
[392331312,1761349844072,-151.0,0.00038346,30]
[392331313,1761349844081,-151.0,0.00038346,30]
[392331314,1761349844090,-151.0,0.00038346,30]
[392331315,1761349844099,-151.0,0.00038346,30]
[392331316,1761349844108,-151.0,0.00038346,30]
[392331317,1761349844118,-2353.1485215,0.00038347,6]
[392331318,1761349844128,-213.45,0.00038348,2]
[392331319,1761349844137,-570.56999594,0.00038349,6]
[392331320,1761349844147,-1425.0,0.00038352,2]
[392331321,1761349844156,-500.0,0.00038355,2]
[392331322,1761349844165,-500.0,0.00038355,2]
[392331323,1761349844175,-500.0,0.00038355,2]
[392331324,1761349844187,-500.0,0.00038355,2]
[392331325,1761349844196,-150.0,0.00038356,30]
[392331326,1761349844205,-150.0,0.00038356,30]
[392331327,1761349844214,-150.0,0.00038356,30]
[392331328,1761349844224,-150.0,0.00038356,30]
[392331329,1761349844233,-150.0,0.00038356,30]
[392331330,1761349844242,-150.0,0.00038356,30]
[392331331,1761349844251,-150.0,0.00038356,30]
[392331332,1761349844261,-150.0,0.00038356,30]
[392331333,1761349844270,-150.0,0.00038356,30]
[392331334,1761349844281,-150.0,0.00038356,30]
[392331335,1761349844292,-151.0,0.00038356,2]
[392331336,1761349844301,-408.61894587,0.00038356,30]
[392331337,1761349844312,-500.0,0.00038356,30]
[392331338,1761349844321,-502.25200251,0.00038356,2]
[392331339,1761349844330,-504.08882552,0.00038356,30]
[392331340,1761349844340,-500.0,0.00038356,30]
[392331341,1761349844349,-500.0,0.00038356,30]
[392331342,1761349844359,-500.0,0.00038356,30]
[392331343,1761349844369,-500.0,0.00038356,30]
[392331344,1761349844379,-564.12,0.00038356,30]
[392331345,1761349844388,-500.0,0.00038356,30]
[392331346,1761349844397,-500.0,0.00038356,30]
[392331347,1761349844407,-500.0,0.00038356,30]
[392331348,1761349844415,-503.96,0.00038356,30]
[392331349,1761349844425,-500.0,0.00038356,30]
[392331350,1761349844434,-926.59,0.00038356,30]
[392331351,1761349844443,-500.0,0.00038356,30]
[392331352,1761349844452,-500.0,0.00038356,30]
[392331353,1761349844461,-500.0,0.00038356,30]
[392331354,1761349844470,-735.82,0.00038356,30]
[392331355,1761349844479,-742.66,0.00038356,30]
[392331356,1761349844488,-500.0,0.00038356,30]
[392331357,1761349844497,-500.0,0.00038356,30]
[392331358,1761349844506,-500.0,0.00038356,30]
[392331359,1761349844515,-500.0,0.00038356,30]
[392331360,1761349844524,-500.0,0.00038356,30]
[392331361,1761349844534,-500.0,0.00038356,30]
[392331362,1761349844543,-500.0,0.00038356,30]
[392331363,1761349844552,-517.61,0.00038356,30]
[392331364,1761349844561,-500.0,0.00038356,30]
[392331365,1761349844571,-500.0,0.00038356,30]
[392331366,1761349844579,-500.0,0.00038356,30]
[392331367,1761349844589,-500.0,0.00038356,30]
[392331368,1761349844599,-500.0,0.00038356,30]
[392331369,1761349844609,-500.0,0.00038356,30]
[392331370,1761349844620,-500.0,0.00038356,30]
[392331371,1761349844630,-500.0,0.00038356,30]
[392331372,1761349844640,-500.0,0.00038356,30]
[392331373,1761349844649,-500.0,0.00038356,30]
[392331374,1761349844659,-407.82802296,0.00038356,30]
[392331375,1761349844669,-500.0,0.00038356,30]
[392331376,1761349844681,-508.51,0.00038356,30]
[392331377,1761349844691,-500.0,0.00038356,30]
[392331378,1761349844700,-500.0,0.00038356,30]
[392331379,1761349844709,-500.0,0.00038356,30]
[392331380,1761349844718,-500.0,0.00038356,30]
[392331381,1761349844727,-500.0,0.00038356,30]
[392331382,1761349844736,-500.0,0.00038356,30]
[392331383,1761349844745,-500.0,0.00038356,30]
[392331384,1761349844755,-500.0,0.00038356,30]
[392331385,1761349844771,-282.13613526,0.00038356,30]
[392331386,1761349844780,-500.0,0.00038356,30]
[392331387,1761349844790,-500.0,0.00038356,30]
[392331388,1761349844799,-500.0,0.00038356,30]
[392331389,1761349844808,-500.0,0.00038356,30]
[392331390,1761349844817,-500.0,0.00038356,30]
[392331391,1761349844827,-500.0,0.00038356,30]
[392331392,1761349844836,-500.0,0.00038356,30]
[392331393,1761349844845,-500.0,0.00038356,30]
[392331394,1761349844855,-500.0,0.00038356,30]
[392331395,1761349844864,-500.0,0.00038356,30]
[392331396,1761349844873,-500.0,0.00038356,30]
[392331397,1761349844882,-500.0,0.00038356,30]
[392331398,1761349844892,-500.0,0.00038356,30]
[392331399,1761349844901,-515.0,0.00038356,30]
[392331400,1761349844910,-500.0,0.00038356,30]
[392331401,1761349844920,-500.0,0.00038356,30]
[392331402,1761349844932,-500.0,0.00038356,30]
[392331403,1761349844941,-500.0,0.00038356,30]
[392331404,1761349844951,-500.0,0.00038356,30]
[392331405,1761349844961,-500.0,0.00038356,30]
[392331406,1761349844970,-500.0,0.00038356,30]
[392331407,1761349844980,-500.0,0.00038356,30]
[392331408,1761349844989,-500.0,0.00038356,30]
[392331409,1761349844998,-500.0,0.00038356,30]
[392331410,1761349845008,-500.0,0.00038356,30]
[392331411,1761349845017,-500.0,0.00038356,30]
[392331412,1761349845027,-967.22,0.00038356,30]
[392331413,1761349845036,-500.0,0.00038356,30]
[392331414,1761349845045,-500.0,0.00038356,30]
[392331415,1761349845055,-667.64,0.00038356,30]
[392331416,1761349845064,-500.0,0.00038356,30]
[392331417,1761349845074,-500.0,0.00038356,30]
[392331418,1761349845083,-500.0,0.00038356,30]
[392331419,1761349845093,-500.0,0.00038356,30]
[392331420,1761349845102,-500.0,0.00038356,30]
[392331421,1761349845111,-500.0,0.00038356,30]
[392331422,1761349845120,-500.0,0.00038356,30]
[392331423,1761349845130,-500.0,0.00038356,30]
[392331424,1761349845139,-500.0,0.00038356,30]
[392331425,1761349845149,-500.0,0.00038356,30]
[392331426,1761349845158,-500.0,0.00038356,30]
[392331427,1761349845167,-500.0,0.00038356,30]
[392331428,1761349845179,-503.82648599,0.00038356,12]
[392331429,1761349845192,-500.0,0.00038356,30]
[392331430,1761349845201,-500.0,0.00038356,30]
[392331431,1761349845211,-500.0,0.00038356,30]
[392331432,1761349845220,-500.0,0.00038356,30]
[392331433,1761349845229,-500.0,0.00038356,30]
[392331434,1761349845239,-500.0,0.00038356,30]
[392331435,1761349845248,-500.0,0.00038356,30]
[392331436,1761349845258,-500.0,0.00038356,30]
[392331437,1761349845267,-500.0,0.00038356,30]
[392331438,1761349845276,-500.0,0.00038356,30]
[392331439,1761349845286,-522.67,0.00038356,30]
[392331440,1761349845296,-500.0,0.00038356,30]
[392331441,1761349845305,-500.0,0.00038356,30]
[392331442,1761349845314,-500.0,0.00038356,30]
[392331443,1761349845323,-500.0,0.00038356,30]
[392331444,1761349845332,-500.0,0.00038356,30]
[392331445,1761349845342,-500.0,0.00038356,30]